[Event "Titled Tuesday Blitz November 08 Late 2022"]
[White "Papayan, Oleg"]
[Black "Jobava, Baadur"]
[WhiteFideId "4193911"]
[BlackFideId "13601520"]
[WhiteElo "2153"]
[BlackElo "2582"]
[Result "1/2-1/2"]
[Round "01"]
[TimeControl "180+1"]
[Date "2022.11.08"]
[WhiteClock "0:00:05"]
[BlackClock "0:00:16"]

1. e4 {[%clk 0:02:55]}  e6 {[%clk 0:02:56]} 2. d4 {[%clk 0:02:53]}  d5 {[%clk 0:02:57]} 3. Nc3 {[%clk 0:02:46]}  dxe4 {[%clk 0:02:56]} 4. Nxe4 {[%clk 0:02:43]}  Bd7 {[%clk 0:02:57]} 5. Nf3 {[%clk 0:02:41]}  Bc6 {[%clk 0:02:57]} 6. Bd3 {[%clk 0:02:42]}  Nd7 {[%clk 0:02:57]} 7. Qe2 {[%clk 0:02:42]}  Ngf6 {[%clk 0:02:56]} 8. Bg5 {[%clk 0:02:43]}  Be7 {[%clk 0:02:55]} 9. Nxf6+ {[%clk 0:02:39]}  Bxf6 {[%clk 0:02:55]} 10. h4 {[%clk 0:02:39]}  h6 {[%clk 0:02:54]} 11. Bf4 {[%clk 0:02:39]}  Bxf3 {[%clk 0:02:50]} 12. Qxf3 {[%clk 0:02:38]}  c6 {[%clk 0:02:49]} 13. O-O-O {[%clk 0:02:38]}  Qb6 {[%clk 0:02:30]} 14. c3 {[%clk 0:02:36]}  O-O-O {[%clk 0:02:28]} 15. Qg3 {[%clk 0:02:29]}  c5 {[%clk 0:02:19]} 16. dxc5 {[%clk 0:02:29]}  Nxc5 {[%clk 0:02:20]} 17. Bc2 {[%clk 0:02:29]}  Rxd1+ {[%clk 0:02:15]} 18. Rxd1 {[%clk 0:02:30]}  Rd8 {[%clk 0:02:14]} 19. Rxd8+ {[%clk 0:02:30]}  Qxd8 {[%clk 0:02:15]} 20. Be5 {[%clk 0:02:25]}  Nd7 {[%clk 0:01:58]} 21. Bd6 {[%clk 0:02:19]}  Nb6 {[%clk 0:01:44]} 22. Be5 {[%clk 0:02:17]}  Nc4 {[%clk 0:01:39]} 23. Bf4 {[%clk 0:02:02]}  Bxh4 {[%clk 0:00:57]} 24. Qxg7 {[%clk 0:01:55]}  Bg5 {[%clk 0:00:56]} 25. Bxg5 {[%clk 0:01:52]}  hxg5 {[%clk 0:00:56]} 26. Kb1 {[%clk 0:01:31]}  Qe7 {[%clk 0:00:38]} 27. Qh8+ {[%clk 0:01:26]}  Kc7 {[%clk 0:00:36]} 28. Qd4 {[%clk 0:01:26]}  Nb6 {[%clk 0:00:36]} 29. Be4 {[%clk 0:01:23]}  e5 {[%clk 0:00:29]} 30. Qe3 {[%clk 0:01:16]}  Nc8 {[%clk 0:00:24]} 31. c4 {[%clk 0:01:08]}  b6 {[%clk 0:00:24]} 32. Qd3 {[%clk 0:01:05]}  Qc5 {[%clk 0:00:18]} 33. Qf3 {[%clk 0:01:04]}  Nd6 {[%clk 0:00:18]} 34. Bd5 {[%clk 0:01:04]}  f5 {[%clk 0:00:18]} 35. Qg3 {[%clk 0:01:01]}  Qd4 {[%clk 0:00:15]} 36. Qxg5 {[%clk 0:00:53]}  Qd3+ {[%clk 0:00:15]} 37. Kc1 {[%clk 0:00:49]}  Qf1+ {[%clk 0:00:16]} 38. Kc2 {[%clk 0:00:49]}  Qxf2+ {[%clk 0:00:17]} 39. Kb3 {[%clk 0:00:48]}  Qc5 {[%clk 0:00:08]} 40. Qe7+ {[%clk 0:00:48]}  Kb8 {[%clk 0:00:07]} 41. Qxe5 {[%clk 0:00:40]}  a5 {[%clk 0:00:07]} 42. Qh8+ {[%clk 0:00:38]}  Kc7 {[%clk 0:00:07]} 43. Qg7+ {[%clk 0:00:31]}  Kb8 {[%clk 0:00:07]} 44. Qd7 {[%clk 0:00:32]}  b5 {[%clk 0:00:04]} 45. Qd8+ {[%clk 0:00:30]}  Nc8 {[%clk 0:00:04]} 46. cxb5 {[%clk 0:00:16]}  a4+ {[%clk 0:00:03]} 47. Kxa4 {[%clk 0:00:14]}  Qxd5 {[%clk 0:00:04]} 48. Qxd5 {[%clk 0:00:12]}  Nb6+ {[%clk 0:00:04]} 49. Kb4 {[%clk 0:00:13]}  Nxd5+ {[%clk 0:00:05]} 50. Kc5 {[%clk 0:00:14]}  Ne3 {[%clk 0:00:05]} 51. g3 {[%clk 0:00:13]}  Nf1 {[%clk 0:00:05]} 52. Kd4 {[%clk 0:00:12]}  Nxg3 {[%clk 0:00:06]} 53. Ke5 {[%clk 0:00:13]}  Kb7 {[%clk 0:00:06]} 54. Kf4 {[%clk 0:00:12]}  Ne2+ {[%clk 0:00:06]} 55. Kxf5 {[%clk 0:00:13]}  Nd4+ {[%clk 0:00:07]} 56. Ke4 {[%clk 0:00:14]}  Nxb5 {[%clk 0:00:07]} 57. Ke5 {[%clk 0:00:14]}  Nc7 {[%clk 0:00:07]} 58. Kd6 {[%clk 0:00:14]}  Nb5+ {[%clk 0:00:07]} 59. Kc5 {[%clk 0:00:14]}  Nc7 {[%clk 0:00:07]} 60. a4 {[%clk 0:00:14]}  Na6+ {[%clk 0:00:08]} 61. Kc4 {[%clk 0:00:14]}  Kb6 {[%clk 0:00:08]} 62. b4 {[%clk 0:00:15]}  Nxb4 {[%clk 0:00:08]} 63. a5+ {[%clk 0:00:16]}  Ka6 {[%clk 0:00:09]} 64. Kxb4 {[%clk 0:00:13]}  Ka7 {[%clk 0:00:09]} 65. Kb5 {[%clk 0:00:14]}  Ka8 {[%clk 0:00:10]} 66. a6 {[%clk 0:00:14]}  Ka7 {[%clk 0:00:10]} 67. Ka5 {[%clk 0:00:14]}  Ka8 {[%clk 0:00:10]} 68. Kb6 {[%clk 0:00:11]}  Kb8 {[%clk 0:00:11]} 69. Kb5 {[%clk 0:00:10]}  Ka8 {[%clk 0:00:12]} 70. Ka4 {[%clk 0:00:07]}  Ka7 {[%clk 0:00:13]} 71. Ka5 {[%clk 0:00:07]}  Ka8 {[%clk 0:00:13]} 72. Kb5 {[%clk 0:00:01]}  Kb8 {[%clk 0:00:14]} 73. Kb6 {[%clk 0:00:02]}  Ka8 {[%clk 0:00:15]} 74. Ka5 {[%clk 0:00:03]}  Ka7 {[%clk 0:00:15]} 75. Kb5 {[%clk 0:00:03]}  Ka8 {[%clk 0:00:16]} 76. Kb6 {[%clk 0:00:03]}  Kb8 {[%clk 0:00:15]} 77. a7+ {[%clk 0:00:04]}  Ka8 {[%clk 0:00:16]} 78. Ka6 {[%clk 0:00:05]} 1/2-1/2


[Site "https://www.chess.com"]

[Event "Titled Tuesday Blitz November 08 Late 2022"]
[White "Pinheiro, Iung Alicio de O."]
[Black "Sorokin, Aleksey"]
[WhiteFideId "2104350"]
[BlackFideId "24176460"]
[WhiteElo "2283"]
[BlackElo "2476"]
[Result "1-0"]
[Round "01"]
[TimeControl "180+1"]
[Date "2022.11.08"]
[WhiteClock "0:00:31"]
[BlackClock "0:00:16"]

1. e4 {[%clk 0:02:57]}  c5 {[%clk 0:02:33]} 2. Nf3 {[%clk 0:02:56]}  Nc6 {[%clk 0:02:33]} 3. c3 {[%clk 0:02:55]}  Nf6 {[%clk 0:02:32]} 4. e5 {[%clk 0:02:55]}  Nd5 {[%clk 0:02:32]} 5. d4 {[%clk 0:02:55]}  cxd4 {[%clk 0:02:33]} 6. Bc4 {[%clk 0:02:53]}  e6 {[%clk 0:02:24]} 7. cxd4 {[%clk 0:02:52]}  d6 {[%clk 0:02:23]} 8. Qe2 {[%clk 0:02:52]}  Nb6 {[%clk 0:02:20]} 9. Bb3 {[%clk 0:02:37]}  dxe5 {[%clk 0:02:16]} 10. dxe5 {[%clk 0:02:36]}  Bb4+ {[%clk 0:02:16]} 11. Nbd2 {[%clk 0:02:29]}  O-O {[%clk 0:02:14]} 12. O-O {[%clk 0:02:30]}  Bd7 {[%clk 0:02:08]} 13. Ne4 {[%clk 0:02:29]}  Qc7 {[%clk 0:02:02]} 14. Bf4 {[%clk 0:02:21]}  Na5 {[%clk 0:01:58]} 15. Rac1 {[%clk 0:02:17]}  Bc6 {[%clk 0:01:56]} 16. Bc2 {[%clk 0:02:13]}  Rad8 {[%clk 0:01:50]} 17. Bh6 {[%clk 0:01:18]}  gxh6 {[%clk 0:00:45]} 18. Nf6+ {[%clk 0:01:02]}  Kh8 {[%clk 0:00:44]} 19. Qe3 {[%clk 0:01:01]}  Kg7 {[%clk 0:00:18]} 20. Nd4 {[%clk 0:00:41]}  Rxd4 {[%clk 0:00:17]} 21. Qxd4 {[%clk 0:00:35]}  Be7 {[%clk 0:00:17]} 22. Qg4+ {[%clk 0:00:35]}  Kh8 {[%clk 0:00:17]} 23. Qh5 {[%clk 0:00:30]}  Bxf6 {[%clk 0:00:16]} 24. Qxh6 {[%clk 0:00:31]} 1-0


[Site "https://www.chess.com"]

[Event "Titled Tuesday Blitz November 08 Late 2022"]
[White "Poltorak, Sebastian"]
[Black "Kozak, Adam"]
[WhiteFideId "1199498"]
[BlackFideId "753246"]
[WhiteElo "2196"]
[BlackElo "2459"]
[Result "1/2-1/2"]
[Round "01"]
[TimeControl "180+1"]
[Date "2022.11.09"]
[WhiteClock "0:00:07"]
[BlackClock "0:00:05"]

1. d4 {[%clk 0:03:00]}  e6 {[%clk 0:02:32]} 2. c4 {[%clk 0:03:01]}  Bb4+ {[%clk 0:02:31]} 3. Nc3 {[%clk 0:02:55]}  Bxc3+ {[%clk 0:02:30]} 4. bxc3 {[%clk 0:02:56]}  b6 {[%clk 0:02:31]} 5. e4 {[%clk 0:02:49]}  Bb7 {[%clk 0:02:30]} 6. Bd3 {[%clk 0:02:48]}  d6 {[%clk 0:02:15]} 7. Ne2 {[%clk 0:02:46]}  Nd7 {[%clk 0:02:12]} 8. O-O {[%clk 0:02:45]}  Ne7 {[%clk 0:02:12]} 9. Be3 {[%clk 0:02:38]}  O-O {[%clk 0:02:12]} 10. Ng3 {[%clk 0:02:33]}  e5 {[%clk 0:02:09]} 11. f4 {[%clk 0:02:32]}  a5 {[%clk 0:01:55]} 12. Qg4 {[%clk 0:02:19]}  Ng6 {[%clk 0:01:47]} 13. f5 {[%clk 0:02:14]}  Nf6 {[%clk 0:01:46]} 14. Qf3 {[%clk 0:02:07]}  Ne7 {[%clk 0:01:37]} 15. d5 {[%clk 0:02:02]}  Kh8 {[%clk 0:01:30]} 16. Bg5 {[%clk 0:02:01]}  Neg8 {[%clk 0:01:12]} 17. Nh5 {[%clk 0:02:00]}  Qe8 {[%clk 0:01:05]} 18. Qh3 {[%clk 0:01:44]}  Nxh5 {[%clk 0:01:03]} 19. Qxh5 {[%clk 0:01:41]}  f6 {[%clk 0:01:03]} 20. Qxe8 {[%clk 0:01:40]}  Rfxe8 {[%clk 0:01:02]} 21. Be3 {[%clk 0:01:38]}  Bc8 {[%clk 0:00:50]} 22. a3 {[%clk 0:01:36]}  g6 {[%clk 0:00:48]} 23. g4 {[%clk 0:01:27]}  Kg7 {[%clk 0:00:47]} 24. Kf2 {[%clk 0:01:26]}  Nh6 {[%clk 0:00:41]} 25. Rg1 {[%clk 0:01:20]}  Nf7 {[%clk 0:00:33]} 26. Rab1 {[%clk 0:01:19]}  Bd7 {[%clk 0:00:33]} 27. h3 {[%clk 0:01:14]}  Reb8 {[%clk 0:00:30]} 28. Ke2 {[%clk 0:01:11]}  Rb7 {[%clk 0:00:30]} 29. Rb2 {[%clk 0:01:08]}  Rab8 {[%clk 0:00:31]} 30. Rgb1 {[%clk 0:01:09]}  Bc8 {[%clk 0:00:31]} 31. Kd2 {[%clk 0:01:04]}  Bd7 {[%clk 0:00:30]} 32. c5 {[%clk 0:00:54]}  dxc5 {[%clk 0:00:30]} 33. Bxc5 {[%clk 0:00:54]}  Ra7 {[%clk 0:00:27]} 34. c4 {[%clk 0:00:52]}  Ng5 {[%clk 0:00:17]} 35. Be3 {[%clk 0:00:42]}  Nxh3 {[%clk 0:00:16]} 36. c5 {[%clk 0:00:42]}  Nf4 {[%clk 0:00:14]} 37. cxb6 {[%clk 0:00:39]}  cxb6 {[%clk 0:00:14]} 38. Rxb6 {[%clk 0:00:37]}  Rxb6 {[%clk 0:00:13]} 39. Rxb6 {[%clk 0:00:37]}  Rc7 {[%clk 0:00:08]} 40. Ba6 {[%clk 0:00:35]}  gxf5 {[%clk 0:00:06]} 41. exf5 {[%clk 0:00:26]}  Nxd5 {[%clk 0:00:06]} 42. Rd6 {[%clk 0:00:17]}  Nxe3 {[%clk 0:00:04]} 43. Kxe3 {[%clk 0:00:18]}  Be8 {[%clk 0:00:03]} 44. Rd8 {[%clk 0:00:14]}  Bf7 {[%clk 0:00:03]} 45. a4 {[%clk 0:00:13]}  Kh6 {[%clk 0:00:03]} 46. Bb5 {[%clk 0:00:09]}  Kg5 {[%clk 0:00:04]} 47. Rh8 {[%clk 0:00:09]}  Bb3 {[%clk 0:00:02]} 48. Ra8 {[%clk 0:00:06]}  Kxg4 {[%clk 0:00:02]} 49. Rxa5 {[%clk 0:00:07]}  Kxf5 {[%clk 0:00:02]} 50. Ra8 {[%clk 0:00:07]}  h5 {[%clk 0:00:02]} 51. Rh8 {[%clk 0:00:07]}  Kg5 {[%clk 0:00:02]} 52. a5 {[%clk 0:00:07]}  Rc5 {[%clk 0:00:03]} 53. Be2 {[%clk 0:00:06]}  Rxa5 {[%clk 0:00:02]} 54. Rxh5+ {[%clk 0:00:06]}  Kg6 {[%clk 0:00:02]} 55. Rh1 {[%clk 0:00:06]}  Be6 {[%clk 0:00:02]} 56. Bd3+ {[%clk 0:00:07]}  Kf7 {[%clk 0:00:03]} 57. Rh7+ {[%clk 0:00:07]}  Kf8 {[%clk 0:00:04]} 58. Rc7 {[%clk 0:00:06]}  Ra3 {[%clk 0:00:03]} 59. Kd2 {[%clk 0:00:06]}  Ra8 {[%clk 0:00:02]} 60. Bg6 {[%clk 0:00:05]}  Rd8+ {[%clk 0:00:02]} 61. Ke3 {[%clk 0:00:06]}  Rd7 {[%clk 0:00:03]} 62. Rc8+ {[%clk 0:00:04]}  Kg7 {[%clk 0:00:03]} 63. Bd3 {[%clk 0:00:04]}  Bf7 {[%clk 0:00:02]} 64. Rc1 {[%clk 0:00:04]}  Kf8 {[%clk 0:00:02]} 65. Rf1 {[%clk 0:00:04]}  Ke7 {[%clk 0:00:02]} 66. Rh1 {[%clk 0:00:04]}  Rd6 {[%clk 0:00:02]} 67. Rh7 {[%clk 0:00:04]}  Kf8 {[%clk 0:00:02]} 68. Rh6 {[%clk 0:00:04]}  Kg7 {[%clk 0:00:02]} 69. Rh1 {[%clk 0:00:04]}  Be6 {[%clk 0:00:02]} 70. Rg1+ {[%clk 0:00:04]}  Kf7 {[%clk 0:00:03]} 71. Rh1 {[%clk 0:00:04]}  Rd4 {[%clk 0:00:03]} 72. Rh7+ {[%clk 0:00:04]}  Kf8 {[%clk 0:00:04]} 73. Ra7 {[%clk 0:00:04]}  Rf4 {[%clk 0:00:04]} 74. Ra6 {[%clk 0:00:04]}  Bf7 {[%clk 0:00:05]} 75. Ra7 {[%clk 0:00:04]}  Kg7 {[%clk 0:00:05]} 76. Be4 {[%clk 0:00:04]}  Kg8 {[%clk 0:00:05]} 77. Ra8+ {[%clk 0:00:04]}  Kg7 {[%clk 0:00:04]} 78. Ra7 {[%clk 0:00:05]}  Kf8 {[%clk 0:00:05]} 79. Ra8+ {[%clk 0:00:05]}  Ke7 {[%clk 0:00:05]} 80. Ra7+ {[%clk 0:00:06]}  Ke6 {[%clk 0:00:06]} 81. Ra6+ {[%clk 0:00:06]}  Kd7 {[%clk 0:00:05]} 82. Ra7+ {[%clk 0:00:06]}  Ke8 {[%clk 0:00:04]} 83. Ra8+ {[%clk 0:00:06]}  Ke7 {[%clk 0:00:05]} 84. Ra7+ {[%clk 0:00:06]}  Kf8 {[%clk 0:00:05]} 85. Ra8+ {[%clk 0:00:06]}  Kg7 {[%clk 0:00:05]} 86. Ra7 {[%clk 0:00:07]} 1/2-1/2


[Site "https://www.chess.com"]

[Event "Titled Tuesday Blitz November 08 Late 2022"]
[White "Prohorov, Olexandr"]
[Black "Sargsyan, Anna M."]
[WhiteFideId "14105578"]
[BlackFideId "13308130"]
[WhiteElo "1993"]
[BlackElo "2284"]
[Result "0-1"]
[Round "01"]
[TimeControl "180+1"]
[Date "2022.11.09"]
[WhiteClock "0:00:33"]
[BlackClock "0:01:23"]

1. e4 {[%clk 0:02:54]}  c6 {[%clk 0:02:59]} 2. d4 {[%clk 0:02:53]}  d5 {[%clk 0:03:00]} 3. e5 {[%clk 0:02:53]}  Bf5 {[%clk 0:03:00]} 4. g4 {[%clk 0:02:51]}  Bd7 {[%clk 0:02:58]} 5. f4 {[%clk 0:02:50]}  e6 {[%clk 0:02:57]} 6. Bg2 {[%clk 0:02:42]}  Qh4+ {[%clk 0:02:55]} 7. Kf1 {[%clk 0:02:41]}  c5 {[%clk 0:02:53]} 8. Be3 {[%clk 0:02:35]}  Bb5+ {[%clk 0:02:45]} 9. Ne2 {[%clk 0:02:28]}  cxd4 {[%clk 0:02:41]} 10. Bxd4 {[%clk 0:02:19]}  Qxg4 {[%clk 0:02:41]} 11. Nc3 {[%clk 0:02:16]}  Qxf4+ {[%clk 0:02:36]} 12. Ke1 {[%clk 0:01:59]}  Bxe2 {[%clk 0:02:32]} 13. Nxe2 {[%clk 0:01:56]}  Qh4+ {[%clk 0:02:30]} 14. Ng3 {[%clk 0:01:51]}  Nc6 {[%clk 0:02:28]} 15. c3 {[%clk 0:01:47]}  Nxd4 {[%clk 0:02:25]} 16. cxd4 {[%clk 0:01:46]}  Bb4+ {[%clk 0:02:24]} 17. Kf2 {[%clk 0:01:44]}  Ne7 {[%clk 0:02:21]} 18. Rf1 {[%clk 0:01:44]}  Nc6 {[%clk 0:02:19]} 19. Rc1 {[%clk 0:01:26]}  Qxd4+ {[%clk 0:02:17]} 20. Qxd4 {[%clk 0:01:23]}  Nxd4 {[%clk 0:02:18]} 21. Rc7 {[%clk 0:01:23]}  O-O {[%clk 0:02:12]} 22. Rxb7 {[%clk 0:01:21]}  Bc5 {[%clk 0:02:10]} 23. b4 {[%clk 0:01:16]}  Bb6 {[%clk 0:02:08]} 24. Ne2 {[%clk 0:01:04]}  Nc6+ {[%clk 0:01:56]} 25. Ke1 {[%clk 0:01:04]}  Nxb4 {[%clk 0:01:52]} 26. Nf4 {[%clk 0:00:56]}  Rab8 {[%clk 0:01:50]} 27. Rd7 {[%clk 0:00:49]}  Rfd8 {[%clk 0:01:42]} 28. Rxd8+ {[%clk 0:00:44]}  Rxd8 {[%clk 0:01:43]} 29. Ke2 {[%clk 0:00:44]}  Rc8 {[%clk 0:01:43]} 30. a3 {[%clk 0:00:41]}  Nc6 {[%clk 0:01:38]} 31. Kd3 {[%clk 0:00:38]}  Nxe5+ {[%clk 0:01:38]} 32. Kd2 {[%clk 0:00:36]}  Ba5+ {[%clk 0:01:35]} 33. Kd1 {[%clk 0:00:33]}  g6 {[%clk 0:01:23]} 0-1


[Site "https://www.chess.com"]

[Event "Titled Tuesday Blitz November 08 Late 2022"]
[White "Ramirez, Maria Eugenia"]
[Black "Ashiku, Franc"]
[WhiteFideId "3301680"]
[BlackFideId "4700066"]
[WhiteElo "1941"]
[BlackElo "2306"]
[Result "0-1"]
[Round "01"]
[TimeControl "180+1"]
[Date "2022.11.09"]
[WhiteClock "0:00:15"]
[BlackClock "0:00:33"]

1. e4 {[%clk 0:03:00]}  a6 {[%clk 0:02:58]} 2. Nc3 {[%clk 0:02:58]}  b5 {[%clk 0:02:55]} 3. Nf3 {[%clk 0:02:56]}  Bb7 {[%clk 0:02:54]} 4. d3 {[%clk 0:02:55]}  b4 {[%clk 0:02:52]} 5. Ne2 {[%clk 0:02:55]}  d5 {[%clk 0:02:52]} 6. g3 {[%clk 0:02:55]}  dxe4 {[%clk 0:02:52]} 7. dxe4 {[%clk 0:02:53]}  Qxd1+ {[%clk 0:02:51]} 8. Kxd1 {[%clk 0:02:53]}  Bxe4 {[%clk 0:02:51]} 9. Bg2 {[%clk 0:02:52]}  Nc6 {[%clk 0:02:50]} 10. Bd2 {[%clk 0:02:50]}  e5 {[%clk 0:02:43]} 11. Rg1 {[%clk 0:02:41]}  f6 {[%clk 0:02:39]} 12. c3 {[%clk 0:02:36]}  Bc5 {[%clk 0:02:30]} 13. Ke1 {[%clk 0:02:33]}  Nge7 {[%clk 0:02:25]} 14. Rc1 {[%clk 0:02:32]}  Bd6 {[%clk 0:02:19]} 15. a3 {[%clk 0:02:21]}  bxa3 {[%clk 0:02:16]} 16. bxa3 {[%clk 0:02:17]}  Bxa3 {[%clk 0:02:14]} 17. Ra1 {[%clk 0:02:16]}  Bc5 {[%clk 0:02:14]} 18. h4 {[%clk 0:02:11]}  a5 {[%clk 0:02:11]} 19. g4 {[%clk 0:02:05]}  a4 {[%clk 0:02:10]} 20. Ng3 {[%clk 0:02:04]}  Bd3 {[%clk 0:02:03]} 21. Bc1 {[%clk 0:01:58]}  a3 {[%clk 0:01:46]} 22. Nd2 {[%clk 0:01:58]}  Ra7 {[%clk 0:01:34]} 23. Nge4 {[%clk 0:01:55]}  Bb6 {[%clk 0:01:21]} 24. Rxa3 {[%clk 0:01:53]}  Rxa3 {[%clk 0:01:20]} 25. Bxa3 {[%clk 0:01:53]}  O-O {[%clk 0:01:17]} 26. Bb2 {[%clk 0:01:48]}  Rb8 {[%clk 0:01:14]} 27. Bc1 {[%clk 0:01:46]}  Ra8 {[%clk 0:01:14]} 28. Nb3 {[%clk 0:01:41]}  Ra2 {[%clk 0:01:11]} 29. Nec5 {[%clk 0:01:39]}  Re2+ {[%clk 0:01:07]} 30. Kd1 {[%clk 0:01:33]}  Rxf2 {[%clk 0:01:07]} 31. Be3 {[%clk 0:01:28]}  Rb2 {[%clk 0:00:54]} 32. Nc1 {[%clk 0:01:27]}  Bc2+ {[%clk 0:00:51]} 33. Ke1 {[%clk 0:01:24]}  Rb5 {[%clk 0:00:46]} 34. Bf1 {[%clk 0:01:08]}  Rxc5 {[%clk 0:00:46]} 35. Bxc5 {[%clk 0:01:06]}  Bxc5 {[%clk 0:00:47]} 36. Rg2 {[%clk 0:01:06]}  Be4 {[%clk 0:00:46]} 37. Rb2 {[%clk 0:01:05]}  Kf7 {[%clk 0:00:46]} 38. Bc4+ {[%clk 0:01:04]}  Bd5 {[%clk 0:00:46]} 39. Bb5 {[%clk 0:01:02]}  Be6 {[%clk 0:00:46]} 40. Nd3 {[%clk 0:01:01]}  Bb6 {[%clk 0:00:46]} 41. Nf2 {[%clk 0:01:00]}  Bxf2+ {[%clk 0:00:44]} 42. Kxf2 {[%clk 0:01:00]}  Bxg4 {[%clk 0:00:44]} 43. Kg3 {[%clk 0:00:59]}  Be6 {[%clk 0:00:45]} 44. Rd2 {[%clk 0:00:56]}  f5 {[%clk 0:00:45]} 45. c4 {[%clk 0:00:54]}  f4+ {[%clk 0:00:46]} 46. Kf3 {[%clk 0:00:53]}  Nd4+ {[%clk 0:00:46]} 47. Ke4 {[%clk 0:00:50]}  Nxb5 {[%clk 0:00:46]} 48. cxb5 {[%clk 0:00:50]}  Kf6 {[%clk 0:00:47]} 49. Rd1 {[%clk 0:00:46]}  Bd5+ {[%clk 0:00:47]} 50. Kd3 {[%clk 0:00:45]}  e4+ {[%clk 0:00:48]} 51. Kd4 {[%clk 0:00:45]}  e3 {[%clk 0:00:48]} 52. Rc1 {[%clk 0:00:43]}  e2 {[%clk 0:00:47]} 53. Kd3 {[%clk 0:00:43]}  f3 {[%clk 0:00:48]} 54. Ke3 {[%clk 0:00:42]}  Bc4 {[%clk 0:00:44]} 55. Kf2 {[%clk 0:00:42]}  Bxb5 {[%clk 0:00:44]} 56. Rxc7 {[%clk 0:00:40]}  Bc6 {[%clk 0:00:44]} 57. Ra7 {[%clk 0:00:38]}  h6 {[%clk 0:00:44]} 58. Ra6 {[%clk 0:00:35]}  g5 {[%clk 0:00:44]} 59. h5 {[%clk 0:00:34]}  g4 {[%clk 0:00:43]} 60. Ra4 {[%clk 0:00:31]}  Kg5 {[%clk 0:00:43]} 61. Rc4 {[%clk 0:00:29]}  Kxh5 {[%clk 0:00:43]} 62. Rc5+ {[%clk 0:00:28]}  Kg6 {[%clk 0:00:43]} 63. Re5 {[%clk 0:00:28]}  h5 {[%clk 0:00:41]} 64. Rxe7 {[%clk 0:00:26]}  Kg5 {[%clk 0:00:37]} 65. Kg3 {[%clk 0:00:21]}  h4+ {[%clk 0:00:36]} 66. Kf2 {[%clk 0:00:21]}  g3+ {[%clk 0:00:36]} 67. Ke1 {[%clk 0:00:19]}  f2+ {[%clk 0:00:35]} 68. Kxe2 {[%clk 0:00:18]}  Bb5+ {[%clk 0:00:36]} 69. Kd2 {[%clk 0:00:17]}  f1=Q {[%clk 0:00:36]} 70. Re5+ {[%clk 0:00:17]}  Kg4 {[%clk 0:00:36]} 71. Re4+ {[%clk 0:00:16]}  Qf4+ {[%clk 0:00:36]} 72. Re3 {[%clk 0:00:15]}  Qxe3+ {[%clk 0:00:36]} 73. Kxe3 {[%clk 0:00:14]}  h3 {[%clk 0:00:36]} 74. Kd4 {[%clk 0:00:14]}  h2 {[%clk 0:00:36]} 75. Kc5 {[%clk 0:00:15]}  h1=Q {[%clk 0:00:37]} 76. Kb4 {[%clk 0:00:15]}  Kf5 {[%clk 0:00:37]} 77. Ka5 {[%clk 0:00:15]}  Ke6 {[%clk 0:00:37]} 78. Kb6 {[%clk 0:00:16]}  Kd7 {[%clk 0:00:37]} 79. Kc5 {[%clk 0:00:16]}  Qd1 {[%clk 0:00:35]} 80. Kb4 {[%clk 0:00:16]}  Qd4+ {[%clk 0:00:35]} 81. Kxb5 {[%clk 0:00:15]}  Kc7 {[%clk 0:00:33]} 82. Ka6 {[%clk 0:00:15]}  Qa4# {[%clk 0:00:33]} 0-1


[Site "https://www.chess.com"]

[Event "Titled Tuesday Blitz November 08 Late 2022"]
[White "Ristic, Nebojsa B"]
[Black "Curtis, John"]
[WhiteFideId "935468"]
[BlackFideId "3200256"]
[WhiteElo "2320"]
[BlackElo "2203"]
[Result "1-0"]
[Round "01"]
[TimeControl "180+1"]
[Date "2022.11.09"]
[WhiteClock "0:00:17"]
[BlackClock "0:00:16"]

1. d4 {[%clk 0:02:58]}  Nf6 {[%clk 0:02:59]} 2. Bf4 {[%clk 0:02:56]}  d6 {[%clk 0:02:57]} 3. Nc3 {[%clk 0:02:55]}  g6 {[%clk 0:02:45]} 4. e4 {[%clk 0:02:54]}  Bg7 {[%clk 0:02:42]} 5. Qd2 {[%clk 0:02:47]}  c6 {[%clk 0:02:35]} 6. f3 {[%clk 0:02:43]}  h5 {[%clk 0:02:33]} 7. O-O-O {[%clk 0:02:39]}  a6 {[%clk 0:02:08]} 8. Bd3 {[%clk 0:02:37]}  b5 {[%clk 0:02:07]} 9. e5 {[%clk 0:02:37]}  dxe5 {[%clk 0:02:05]} 10. dxe5 {[%clk 0:02:38]}  Nd5 {[%clk 0:02:03]} 11. Nxd5 {[%clk 0:02:35]}  cxd5 {[%clk 0:02:03]} 12. Ne2 {[%clk 0:02:19]}  Nc6 {[%clk 0:02:01]} 13. Qe3 {[%clk 0:02:03]}  e6 {[%clk 0:01:46]} 14. Kb1 {[%clk 0:01:58]}  Rb8 {[%clk 0:01:44]} 15. Bg5 {[%clk 0:01:52]}  Qb6 {[%clk 0:01:42]} 16. Qxb6 {[%clk 0:01:51]}  Rxb6 {[%clk 0:01:42]} 17. f4 {[%clk 0:01:50]}  Nb4 {[%clk 0:01:40]} 18. Nd4 {[%clk 0:01:46]}  Nxd3 {[%clk 0:01:39]} 19. cxd3 {[%clk 0:01:43]}  Kd7 {[%clk 0:01:09]} 20. Rc1 {[%clk 0:01:32]}  Rb7 {[%clk 0:01:09]} 21. Nb3 {[%clk 0:01:32]}  Rc7 {[%clk 0:01:08]} 22. Rxc7+ {[%clk 0:01:29]}  Kxc7 {[%clk 0:01:09]} 23. Rc1+ {[%clk 0:01:30]}  Kd7 {[%clk 0:01:08]} 24. d4 {[%clk 0:01:19]}  Bf8 {[%clk 0:01:08]} 25. Bf6 {[%clk 0:01:17]}  Rg8 {[%clk 0:01:07]} 26. a3 {[%clk 0:01:16]}  Bh6 {[%clk 0:01:00]} 27. g3 {[%clk 0:01:13]}  g5 {[%clk 0:00:54]} 28. Nc5+ {[%clk 0:00:53]}  Ke8 {[%clk 0:00:54]} 29. fxg5 {[%clk 0:00:52]}  Bxg5 {[%clk 0:00:53]} 30. Bxg5 {[%clk 0:00:53]}  Rxg5 {[%clk 0:00:53]} 31. Rf1 {[%clk 0:00:54]}  Rg4 {[%clk 0:00:53]} 32. Rf4 {[%clk 0:00:52]}  Rxf4 {[%clk 0:00:44]} 33. gxf4 {[%clk 0:00:53]}  f6 {[%clk 0:00:44]} 34. Kc2 {[%clk 0:00:51]}  Kf7 {[%clk 0:00:43]} 35. Kd3 {[%clk 0:00:50]}  fxe5 {[%clk 0:00:41]} 36. fxe5 {[%clk 0:00:44]}  Kg6 {[%clk 0:00:40]} 37. Ke3 {[%clk 0:00:42]}  Kg5 {[%clk 0:00:41]} 38. Kf3 {[%clk 0:00:36]}  a5 {[%clk 0:00:41]} 39. b4 {[%clk 0:00:35]}  axb4 {[%clk 0:00:39]} 40. axb4 {[%clk 0:00:36]}  Kh4 {[%clk 0:00:40]} 41. Kg2 {[%clk 0:00:20]}  Kg4 {[%clk 0:00:39]} 42. Nd3 {[%clk 0:00:20]}  Bd7 {[%clk 0:00:31]} 43. h3+ {[%clk 0:00:18]}  Kh4 {[%clk 0:00:29]} 44. Nf4 {[%clk 0:00:17]}  Kg5 {[%clk 0:00:27]} 45. Kf3 {[%clk 0:00:16]}  Kh4 {[%clk 0:00:25]} 46. Kg2 {[%clk 0:00:16]}  Kg5 {[%clk 0:00:26]} 47. Kg3 {[%clk 0:00:17]}  h4+ {[%clk 0:00:24]} 48. Kf3 {[%clk 0:00:17]}  Kf5 {[%clk 0:00:25]} 49. Ke3 {[%clk 0:00:17]}  Be8 {[%clk 0:00:25]} 50. Ne2 {[%clk 0:00:16]}  Bh5 {[%clk 0:00:25]} 51. Nc3 {[%clk 0:00:17]}  Bg4 {[%clk 0:00:23]} 52. hxg4+ {[%clk 0:00:14]}  Kxg4 {[%clk 0:00:23]} 53. Kf2 {[%clk 0:00:13]}  h3 {[%clk 0:00:21]} 54. Nxb5 {[%clk 0:00:13]}  Kf4 {[%clk 0:00:20]} 55. Nd6 {[%clk 0:00:12]}  h2 {[%clk 0:00:20]} 56. Kg2 {[%clk 0:00:12]}  Ke3 {[%clk 0:00:20]} 57. b5 {[%clk 0:00:13]}  Kxd4 {[%clk 0:00:21]} 58. b6 {[%clk 0:00:13]}  Kxe5 {[%clk 0:00:21]} 59. Nf7+ {[%clk 0:00:13]}  Kf6 {[%clk 0:00:19]} 60. b7 {[%clk 0:00:13]}  h1=Q+ {[%clk 0:00:19]} 61. Kxh1 {[%clk 0:00:13]}  Kxf7 {[%clk 0:00:20]} 62. b8=Q {[%clk 0:00:14]}  Kf6 {[%clk 0:00:20]} 63. Qf4+ {[%clk 0:00:14]}  Ke7 {[%clk 0:00:21]} 64. Qe5 {[%clk 0:00:15]}  Kd7 {[%clk 0:00:21]} 65. Kg2 {[%clk 0:00:16]}  Kc6 {[%clk 0:00:21]} 66. Kf2 {[%clk 0:00:17]}  Kc5 {[%clk 0:00:22]} 67. Ke3 {[%clk 0:00:16]}  Kc4 {[%clk 0:00:22]} 68. Qxe6 {[%clk 0:00:17]}  Kc5 {[%clk 0:00:20]} 69. Kd3 {[%clk 0:00:16]}  d4 {[%clk 0:00:20]} 70. Qe5+ {[%clk 0:00:17]}  Kc6 {[%clk 0:00:20]} 71. Kxd4 {[%clk 0:00:17]}  Kd7 {[%clk 0:00:18]} 72. Qf6 {[%clk 0:00:16]}  Kc7 {[%clk 0:00:17]} 73. Qe6 {[%clk 0:00:17]}  Kb7 {[%clk 0:00:14]} 74. Kc5 {[%clk 0:00:17]}  Kc7 {[%clk 0:00:15]} 75. Qf7+ {[%clk 0:00:17]}  Kd8 {[%clk 0:00:15]} 76. Kd6 {[%clk 0:00:17]}  Kc8 {[%clk 0:00:16]} 77. Qc7# {[%clk 0:00:17]} 1-0


[Site "https://www.chess.com"]